[Event "German-ch Blitz Women 2022"]
[Site "Magdeburg"]
[Date "2022.08.13"]
[Round "19.6"]
[White "Nikolaeva, Mariya A"]
[Black "Falke, Ornella"]
[Result "0-1"]
[ECO "C02"]
[WhiteElo "1309"]
[BlackElo "1912"]
[Annotator "TA"]
[PlyCount "115"]
[EventDate "2022.08.10"]
[EventType "tourn"]
[EventCountry "GER"]
[SourceTitle "playchess.com"]
[Source "ChessBase"]
[SourceQuality "1"]
[TimeControl "180+2"]

{[%evp 14,115,62,0,31,-14,-12,0,0,-27,-20,-39,0,-18,11,17,93,-31,43,22,55,28,56,42,48,-23,-22,-19,-10,-75,-67,-76,-2,-29,-11,-123,-80,-86,-81,-75,0,-47,-51,-64,0,0,0,0,0,0,-12,-7,0,0,0,-253,-244,-304,-304,-304,-287,-295,-207,-204,-187,-363,-354,-277,-223,-324,-310,-312,-322,-310,-314,-312,-224,-224,-226,-289,-279,-407,-377,-454,-449,-463,-225,-708,-707,-704,-876,-799,-791,-932,-890,-1019,-925,-1311,-832,-791,-680,-29961,-29966,-5265]} 1. e4 e6 2. d4 d5 3. e5 c5 4. c3 Nc6 {[%cal Bb8c6,Bc6a5,Ba5b3][%mdl 32]} 5. Nf3 Qb6 6. a3 c4 {The main line 6...c4 scores better than 6...Nh6.} 7. Nbd2 Bd7 8. g3 (8. b3 $14) 8... Nh6 {C02: French: Advance Variation.} 9. Bg2 Na5 10. O-O Be7 {[#] The position is equal.} 11. h3 $146 ({Predecessor:} 11. Re1 Nf5 12. Rb1 Rc8 13. Qc2 O-O 14. Nf1 Qb3 15. Qe2 Ba4 16. g4 Nh4 17. Nxh4 Bxh4 {0-1 (49) Delgado Ramirez,N (2619)-Kovalenko,I (2646) Batumi 2018}) 11... Nf5 12. Nh2 h5 13. Rb1 Nb3 14. Nxb3 cxb3 (14... Ba4 $11) 15. Be3 ({White should try} 15. Bf3 $16) 15... Bb5 (15... Nxe3 $15 16. fxe3 f5) 16. Re1 $14 Bc4 17. Nf3 Qd8 18. Nd2 Bd3 19. Qxb3 (19. Ra1 $14) 19... Bxb1 $11 20. Rxb1 Qc7 21. Bf1 (21. Re1 $11 {keeps the balance.}) 21... Nxe3 $17 22. fxe3 Bg5 (22... f6 $17 {Threatens to win with ...0-0-0.} 23. Bb5+ Kd8) 23. Bb5+ Kf8 (23... Kd8 $5 {[%cal Rg5e3]} 24. Kf2 h4 $11) 24. Nf1 (24. Kf2 $11 {remains equal.}) 24... a6 25. Bd3 h4 26. g4 g6 ({Better is} 26... f6 $17 27. exf6 Rh6 28. Qb4+ Kg8) 27. Qc2 (27. e4 $11 {should be considered.}) 27... Kg7 $15 28. Re1 b5 ({Black should play} 28... Raf8 $15) 29. Nh2 $11 Rab8 $36 {[%mdl 2048] White is under pressure.} 30. Nf3 Be7 31. Rf1 a5 32. Qf2 b4 33. axb4 axb4 34. Nh2 $2 {[%mdl 8192] Black keeps a firm grip on the game.} (34. c4 $1 $11 {and White is okay.}) 34... Rhf8 $19 35. cxb4 Rxb4 36. Nf3 Qb7 37. g5 ({Wrong is} 37. Nxh4 $2 Rxb2 38. Bc2 Bxh4 39. Qxh4 Rxc2 $19) 37... Rxb2 38. Qxh4 Rh8 {Inhibits Qh6+.} 39. Qg3 (39. Qf4) 39... Qb3 40. Ne1 Rd2 41. Qf3 (41. Ba6 {keeps fighting.}) 41... Rf8 42. Be2 Bxg5 {Really sharp!} 43. Ng2 Qc2 44. Rf2 Qf5 45. Qg3 {[#]} Qb1+ 46. Kh2 Be7 47. Nf4 (47. Qf3 $142) 47... Rh8 {White must now prevent ...Bh4.} 48. Rg2 Bh4 49. Qg4 Qf5 (49... Qe4 $142 50. Qf3 Qxf3 51. Bxf3 Bf2 52. Nh5+ Kf8) 50. Qf3 $2 (50. Qxf5 exf5 51. e6) 50... Bg5 {aiming for ...Bxf4+.} 51. Qg3 Bxf4 52. exf4 Qe4 53. Bf3 Rxg2+ 54. Qxg2 Qxd4 {[#] Hoping for ...Rb8.} 55. Kg3 Qd3 56. h4 Qf5 57. Kf2 Rxh4 58. Qg3 {Weighted Error Value: White=0.80/Black=0.36} 0-1

[Event "German-ch Blitz Women 2022"]
[Site "Magdeburg"]
[Date "2022.08.13"]
[Round "19.7"]
[White "Zhou, Lepu Coco"]
[Black "Stangl, Anita"]
[Result "1-0"]
[ECO "C14"]
[WhiteElo "1986"]
[BlackElo "2023"]
[Annotator "NA RC"]
[PlyCount "101"]
[EventDate "2022.08.10"]
[EventType "tourn"]
[EventCountry "GER"]
[SourceTitle "playchess.com"]
[Source "ChessBase"]
[SourceQuality "1"]
[TimeControl "180+2"]

1. e4 {[%emt 0:00:01]} e6 {[%emt 0:00:00]} 2. d4 {[%emt 0:00:01]} d5 {[%emt 0:00:01]} 3. Nc3 {[%emt 0:00:01]} Nf6 {[%emt 0:00:00]} 4. Bg5 {[%emt 0:00:01]} Be7 {[%emt 0:00:00]} 5. e5 {[%emt 0:00:01]} Nfd7 {[%emt 0:00:01]} 6. Bxe7 {[%emt 0:00:01]} Qxe7 {[%emt 0:00:01]} 7. f4 a6 8. Qg4 {[%emt 0:00:03]} g6 {[%emt 0:00:01]} 9. Nf3 {[%emt 0:00:02]} c5 {[%emt 0:00:02]} 10. h4 {[%emt 0:00:03]} Nc6 {[%emt 0:00:02]} 11. O-O-O {[%emt 0:00:06]} cxd4 {[%emt 0:00:08]} 12. Nxd4 {[%emt 0:00:02]} Nxd4 {[%emt 0:00:01]} 13. Rxd4 {[%emt 0:00:01]} Qc5 {[%emt 0:00:01]} 14. Qd1 {[%emt 0:00:12]} b5 {[%emt 0:00:04]} 15. g4 {[%emt 0:00:08]} Bb7 {[%emt 0:00:03]} 16. Bg2 {[%emt 0:00:03]} Nb6 {[%emt 0:00:08]} 17. f5 {[%emt 0:00:10]} Nc4 {[%emt 0:00:06]} 18. Re1 {[%emt 0:00:15]} Rc8 {[%emt 0:00:01]} 19. fxe6 {[%emt 0:00:05]} fxe6 {[%emt 0:00:03]} 20. g5 {[%emt 0:00:05]} Nxb2 {[%emt 0:00:03]} 21. Kxb2 {[%emt 0:00:07]} Qxc3+ {[%emt 0:00:01]} 22. Kb1 {[%emt 0:00:01]} Rf8 {[%emt 0:00:11]} 23. Rd3 {[%emt 0:00:05]} Qb4+ {[%emt 0:00:02]} 24. Rb3 {[%emt 0:00:04]} Qxh4 {[%emt 0:00:01]} 25. Rh1 {[%emt 0:00:08]} Qxg5 {[%emt 0:00:01]} 26. Bf3 {[%emt 0:00:16]} h5 {[%emt 0:00:17]} 27. Rg1 {[%emt 0:00:05]} Qf5 {[%emt 0:00:07]} 28. Bg2 {[%emt 0:00:14]} Qxe5 {[%emt 0:00:04]} 29. Re1 {[%emt 0:00:02]} Qf5 {[%emt 0:00:17]} 30. Bh3 {[%emt 0:00:04]} Qg5 {[%emt 0:00:20]} 31. Bxe6 {[%emt 0:00:08]} Kd8 {[%emt 0:00:04]} 32. Bxc8 {[%emt 0:00:05]} Kxc8 {[%emt 0:00:01]} 33. Rc3+ {[%emt 0:00:06]} Kb8 {[%emt 0:00:01]} 34. Qe2 {[%emt 0:00:08]} Ka8 {[%emt 0:00:09]} 35. Rc7 {[%emt 0:00:09]} Qf4 {[%emt 0:00:03]} 36. Qe7 {[%emt 0:00:11]} Rb8 {[%emt 0:00:06]} 37. Re6 {[%emt 0:00:14]} Qf1+ {[%emt 0:00:11]} 38. Kb2 {[%emt 0:00:01]} b4 {[%emt 0:00:01]} 39. Rf6 {[%emt 0:00:17]} Qb5 {[%emt 0:00:01]} 40. Rxg6 {[%emt 0:00:06]} a5 {[%emt 0:00:06]} 41. Qd6 {[%emt 0:00:10]} a4 42. Rc5 a3+ {[%emt 0:00:38]} 43. Kb3 {[%emt 0:00:14]} Qc4+ {[%emt 0:00:03]} 44. Rxc4 {[%emt 0:00:02]} dxc4+ {[%emt 0:00:01]} 45. Kxc4 {[%emt 0:00:04]} Rc8+ {[%emt 0:00:01]} 46. Kb3 {[%emt 0:00:02]} Rc3+ {[%emt 0:00:09]} 47. Kxb4 {[%emt 0:00:02]} Rxc2 {[%emt 0:00:03]} 48. Rg8+ {[%emt 0:00:06]} Ka7 {[%emt 0:00:05]} 49. Qd4+ {[%emt 0:00:01]} Ka6 {[%emt 0:00:01]} 50. Rg6+ {[%emt 0:00:01]} Bc6 {[%emt 0:00:01]} 51. Qd3+ {[%emt 0:00:02]} 1-0

[Event "German-ch Blitz Women 2022"]
[Site "Magdeburg"]
[Date "2022.08.13"]
[Round "19.8"]
[White "Muetsch, Annmarie"]
[Black "Wulf, Constanze"]
[Result "1-0"]
[ECO "B01"]
[WhiteElo "2249"]
[BlackElo "1835"]
[Annotator "TA"]
[PlyCount "48"]
[EventDate "2022.08.10"]
[EventType "tourn"]
[EventCountry "GER"]
[SourceTitle "playchess.com"]
[Source "ChessBase"]
[SourceQuality "1"]
[TimeControl "180+2"]

{[%evp 9,48,16,8,-16,11,0,0,0,16,0,8,-6,12,-25,-22,-44,-2,-29,10,-43,4,-59,55,0,91,95,95,33,50,53,369,100,178,188,272,-84,136,130,150,151,783]} 1. e4 {[%emt 0:00:01]} d5 {[%emt 0:00:01]} 2. exd5 {[%emt 0:00:02]} Qxd5 {[%emt 0:00:01]} 3. Nc3 {[%emt 0:00:01]} Qd6 {[%emt 0:00:01]} 4. Bc4 {[%emt 0:00:05]} Nf6 {[%emt 0:00:04]} 5. d3 {[%emt 0:00:04]} a6 {[%emt 0:00:04]} 6. a4 {[%emt 0:00:02] B01: Scandinavian Defence.} e6 {[%emt 0:00:28]} 7. Nge2 {[%emt 0:00:02] [#]} Be7 $146 {[%emt 0:00:04]} ({Predecessor:} 7... b6 8. O-O Bb7 9. f3 Be7 10. Ng3 O-O 11. Qe1 Qd8 12. Nge4 Nbd7 13. Ne2 Nxe4 14. fxe4 {1-0 (28) Salahidi,R (1730)-Tsamantani,E (1346) Porto Rio 2014}) 8. Bf4 {[%emt 0:00:07] The position is equal.} Qd8 {[%emt 0:00:06]} 9. O-O {[%emt 0:00:03]} O-O {[%emt 0:00:02]} 10. Ng3 {[%emt 0:00:06]} c5 {[%emt 0:00:19]} 11. Qe2 {[%emt 0:00:10]} Nc6 {[%emt 0:00:03]} 12. Nce4 {[%emt 0:00:12]} b6 {[%emt 0:00:22]} (12... Nd5 $5 {[%cal Rd5f4]} 13. Bd2 Nb6 $15) 13. c3 {[%emt 0:00:04]} Bb7 {[%emt 0:00:04]} (13... Nd5 $5 {[%cal Rd5f4]} 14. Bc1 Rb8 $11) 14. Bb3 {[%emt 0:00:07]} ({White should play} 14. Nxf6+ $11 Bxf6 15. Nh5) 14... Re8 {[%emt 0:00:17]} (14... Nd5 $15 15. Bd2 Na5) 15. Rad1 {[%emt 0:00:08]} (15. Nxf6+ $11 Bxf6 16. Ne4) 15... b5 {[%emt 0:00:13]} (15... Nd5 $15 16. Nh5 Nxf4 17. Nxf4 Na5) 16. Bc2 {[%emt 0:00:10]} (16. Nxf6+ $14 Bxf6 17. Rfe1) 16... Qb6 {[%emt 0:00:07]} (16... Nd5 $11 {keeps the balance.} 17. Be3 Nxe3 18. Qxe3 Qd5) 17. Nxf6+ $16 {[%emt 0:00:42]} Bxf6 {[%emt 0:00:01]} 18. Ne4 {[%emt 0:00:01]} (18. d4 $16) 18... Be7 $1 $14 {[%emt 0:00:07]} 19. Qh5 {[%emt 0:00:14][%cal Od3d4] Strongly threatening d4!} h6 $2 {[%emt 0:00:43][%mdl 8192]} ({Black should try} 19... f5 $14) 20. Qh3 $2 {[%emt 0:00:13]} (20. d4 $18 {[%cal Rd4c5] and White stays clearly on top.} c4 21. Bxh6 $1 {[%mdl 512]}) 20... Rad8 {[%emt 0:00:05]} (20... f5 $16) 21. Qg3 $18 {[%emt 0:00:03] Bxh6 is the strong threat.} Kh8 {[%emt 0:00:04]} (21... Kf8 $142) 22. Nd2 $2 {[%emt 0:00:14] [#]} (22. Bc7 $18 Qa7 23. axb5 (23. Bxd8 Rxd8 24. axb5 axb5 $16) 23... axb5 24. Ra1) 22... bxa4 $2 {[%emt 0:00:20]} (22... e5 $1 $17 {[%cal Re5f4] stays on course.} 23. Be3 {[#]} (23. Bxe5 Nxe5 24. Qxe5 Bg5 $15) 23... Nd4 $1 24. cxd4 cxd4 25. axb5 (25. Qxe5 $2 dxe3 26. Qxe3 Qc6 $19) 25... axb5) 23. Nc4 $16 {[%emt 0:00:01]} Qb5 {[%emt 0:00:08][%cal Oe6e5]} 24. Ra1 {[%emt 0:00:02][%mdl 1024] White has strong compensation. White is more active.} Na5 $2 {Weighted Error Value: White=0.68/Black=0.72} (24... a5 $16 25. Bxa4 Qa6 26. Nxa5 Rxd3 27. Bxc6 Rxg3 28. Bxb7 Rxg2+ 29. Bxg2 Qe2) 1-0

[Event "German-ch Blitz Women 2022"]
[Site "Magdeburg"]
[Date "2022.08.13"]
[Round "19.9"]
[White "Daemering, Katrin"]
[Black "Doll, Rebecca"]
[Result "1-0"]
[ECO "C54"]
[WhiteElo "1965"]
[BlackElo "1933"]
[Annotator "TA"]
[PlyCount "90"]
[EventDate "2022.08.10"]
[EventType "tourn"]
[EventCountry "GER"]
[SourceTitle "playchess.com"]
[Source "ChessBase"]
[SourceQuality "1"]
[TimeControl "180+2"]

{[%evp 15,90,0,0,0,0,0,0,-23,-33,-25,0,-38,-27,-23,0,0,0,0,0,0,9,19,14,-179,-191,-216,-220,-222,-219,-232,-227,-272,-235,-220,-14,-16,0,0,0,0,0,0,0,0,0,0,0,0,137,142,266,193,189,181,297,277,302,299,293,270,398,326,324,274,514,495,4910,372,395,373,559,554,29970,29971,5106,477,29988]} 1. e4 {[%emt 0:00:01]} e5 {[%emt 0:00:02]} 2. Nf3 {[%emt 0:00:01]} Nc6 {[%emt 0:00:01]} 3. Bc4 {[%emt 0:00:01]} Bc5 {[%emt 0:00:01]} 4. c3 {[%emt 0:00:02]} Nf6 {[%emt 0:00:04]} 5. O-O {[%emt 0:00:02]} d6 {[%emt 0:00:05]} 6. d4 {[%emt 0:00:02]} Bb6 {[%emt 0:00:01]} 7. dxe5 {[%emt 0:00:12] 7.a4 is not played anymore.} Nxe5 {[%emt 0:00:01]} 8. Nxe5 {[%emt 0:00:10]} dxe5 {[%emt 0:00:02]} 9. Qxd8+ {[%emt 0:00:02] C50: Hungarian Defence and Giuoco Pianissimo.} Kxd8 {[%emt 0:00:01]} 10. Bg5 {[%emt 0:00:04]} Ke7 {[%emt 0:00:12]} 11. Nd2 {[%emt 0:00:08] The position is equal.} h6 {[%emt 0:00:07]} 12. Bxf6+ {[%emt 0:00:02]} gxf6 {[%emt 0:00:02] [#]} 13. h3 $146 {[%emt 0:00:06]} ({Predecessor:} 13. Rfe1 a6 14. Kf1 h5 15. Bb3 h4 16. Nc4 Bc5 17. Ne3 c6 18. h3 Be6 19. Rad1 {1-0 (53) Roberson,P (2425)-Li,B (2361) Chess.com INT 2022}) 13... Rg8 {[%emt 0:00:04] aiming for ...Bxh3.} 14. Kh2 {[%emt 0:00:05]} Be6 {[%emt 0:00:25]} (14... a5 {is interesting.} 15. Nf3 Bd7 16. Rad1 Rad8) 15. Bxe6 {[%emt 0:00:04]} fxe6 {[%emt 0:00:02]} 16. Nc4 {[%emt 0:00:08]} Rad8 {[%emt 0:00:36]} 17. a4 {[%emt 0:00:02]} c6 {[%emt 0:00:02]} 18. a5 {[%emt 0:00:07]} Bc7 {[%emt 0:00:02]} 19. a6 $2 {[%emt 0:00:14]} (19. Rfd1 $11) 19... b5 $19 {[%emt 0:00:08]} 20. Ne3 {[%emt 0:00:21]} Rd2 {[%emt 0:00:08]} 21. b4 {[%emt 0:00:37]} Bb6 {[%emt 0:00:11]} 22. Rae1 {[%emt 0:00:01] [#]} Rgd8 $1 {[%emt 0:00:06]} 23. Ng4 {[%emt 0:00:14]} h5 {[%emt 0:00:05]} 24. Ne3 {[%emt 0:00:02]} Bxe3 $2 {[%emt 0:00:08]} (24... R8d3 $19 25. c4 Rb2) 25. Rxe3 {[%emt 0:00:02][%mdl 4096] Endgame KRR-KRR} Ra2 {[%emt 0:00:02]} 26. Rg3 {[%emt 0:00:09]} Kf7 {[%emt 0:00:06] Prevents Rg7+.} 27. f4 {[%emt 0:00:09]} exf4 {[%emt 0:00:11]} (27... Rxa6 $2 28. fxe5 f5 29. exf5 $18) 28. Rxf4 {[%emt 0:00:01]} Rxa6 {[%emt 0:00:12][%cal Oc6c5]} 29. Rgf3 {[%emt 0:00:02]} f5 {[%emt 0:00:13]} 30. exf5 {[%emt 0:00:02]} e5 {[%emt 0:00:01]} 31. Rh4 {[%emt 0:00:06]} Ra2 {[%emt 0:00:12]} (31... Rh8 $11) 32. Rxh5 $16 {[%emt 0:00:06]} Rdd2 {[%emt 0:00:01]} (32... e4 $16 {might work better.} 33. Re3 Rdd2) 33. Rg5 {[%emt 0:00:05]} e4 {[%emt 0:00:18] [#]} 34. Re3 {[%emt 0:00:01]} Kf6 {[%emt 0:00:03]} (34... Ra3 $142 35. Rgg3 (35. Rxe4 Rxc3 36. h4 c5 $16) 35... Rf2 36. Rxe4 a5 37. bxa5 Rxf5) 35. h4 $18 {[%emt 0:00:06]} Rf2 {[%emt 0:00:08]} 36. Rxe4 {[%emt 0:00:09] Black must now prevent Re6+.} Rxf5 {[%emt 0:00:01]} 37. Rg8 {[%emt 0:00:08] Strongly threatening Rf8+.} Rff2 {[%emt 0:00:03]} (37... Kf7 $142 38. Rc8 c5 39. bxc5 Rff2 40. Rc7+ Kf6) 38. Rd4 {[%emt 0:00:07]} a5 {[%emt 0:00:02]} 39. Rd6+ {[%emt 0:00:02]} Ke7 $2 {[%emt 0:00:03]} (39... Kf7 40. Rg5 axb4) 40. Rxc6 {[%emt 0:00:02]} a4 {[%emt 0:00:04]} (40... Rf6 $142) 41. Rg7+ $2 {[%emt 0:00:05]} (41. h5 {h6 would kill now.} Kf7 42. Rcc8) 41... Kf8 {[%emt 0:00:02]} 42. Rg5 {[%emt 0:00:11] Threatens to win with h5.} a3 {[%emt 0:00:03]} (42... Rae2 {was called for.} 43. h5 (43. Rxb5 Rxg2+ 44. Kh3 Rh2+ 45. Kg3 Reg2+ 46. Kf3 Rf2+ 47. Ke3 Re2+ 48. Kd3 Rd2+ 49. Kc4 Rxh4+ 50. Kc5 Rd8 $18) 43... Re8 44. Rxb5 a3) 43. Ra6 {[%emt 0:00:01]} Rfc2 {[%emt 0:00:03]} 44. h5 {[%emt 0:00:02]} Rxc3 {[%emt 0:00:03]} 45. Rxb5 {[%emt 0:00:02]} (45. h6 $142 {Threatening mate with h7.} Rc4 46. Rxb5) 45... Rb2 {White used his chance.  Weighted Error Value: White=0.63/Black=0.69} (45... Rac2 $18 46. Rb7 a2 47. Ra8+ Rc8) 1-0

[Event "German-ch Blitz Women 2022"]
[Site "Magdeburg"]
[Date "2022.08.13"]
[Round "19.10"]
[White "Khrapko, Marharyta"]
[Black "Kunze, Kerstin"]
[Result "1-0"]
[ECO "C92"]
[WhiteElo "2128"]
[BlackElo "2020"]
[Annotator "NA RC"]
[PlyCount "94"]
[EventDate "2022.08.10"]
[EventType "tourn"]
[EventCountry "GER"]
[SourceTitle "playchess.com"]
[Source "ChessBase"]
[SourceQuality "1"]
[TimeControl "180+2"]

1. e4 {[%emt 0:00:01]} e5 {[%emt 0:00:01]} 2. Nf3 {[%emt 0:00:01]} Nc6 {[%emt 0:00:01]} 3. Bb5 {[%emt 0:00:01]} a6 {[%emt 0:00:00]} 4. Ba4 {[%emt 0:00:01]} Nf6 {[%emt 0:00:03]} 5. O-O {[%emt 0:00:01]} b5 {[%emt 0:00:03]} 6. Bb3 {[%emt 0:00:01]} Be7 {[%emt 0:00:02]} 7. Re1 {[%emt 0:00:01]} O-O {[%emt 0:00:02]} 8. h3 {[%emt 0:00:01]} d6 {[%emt 0:00:11]} 9. c3 {[%emt 0:00:01]} Bb7 {[%emt 0:00:27]} 10. d4 {[%emt 0:00:14]} Nd7 {[%emt 0:00:06]} 11. a4 {[%emt 0:00:07]} Na5 {[%emt 0:00:06]} 12. Bc2 {[%emt 0:00:03]} c5 {[%emt 0:00:03]} 13. Na3 {[%emt 0:00:24]} bxa4 {[%emt 0:00:10]} 14. Bxa4 {[%emt 0:00:06]} Nb6 {[%emt 0:00:13]} 15. dxe5 {[%emt 0:00:12]} dxe5 {[%emt 0:00:16]} 16. Nxe5 {[%emt 0:00:03]} Qc7 {[%emt 0:00:01]} 17. Nf3 {[%emt 0:00:28]} Rfd8 {[%emt 0:00:31]} 18. Qc2 {[%emt 0:00:01]} Rac8 {[%emt 0:00:10]} 19. Nb1 {[%emt 0:00:42]} c4 {[%emt 0:00:30]} 20. Be3 {[%emt 0:00:07]} Bc5 {[%emt 0:00:25]} 21. Bxc5 {[%emt 0:00:12]} Qxc5 {[%emt 0:00:01]} 22. Qe2 {[%emt 0:00:09]} Nxa4 {[%emt 0:00:10]} 23. Rxa4 {[%emt 0:00:02]} Bc6 {[%emt 0:00:08]} 24. Ra3 {[%emt 0:00:13]} Rb8 {[%emt 0:00:02]} 25. Nd4 {[%emt 0:00:04]} Be8 {[%emt 0:00:02]} 26. Ra2 {[%emt 0:00:13]} Rb7 {[%emt 0:00:02]} 27. Nd2 {[%emt 0:00:06]} Rdb8 {[%emt 0:00:00]} 28. N2f3 {[%emt 0:00:01]} Bd7 {[%emt 0:00:05]} 29. Rea1 {[%emt 0:00:02]} Nb3 {[%emt 0:00:04]} 30. Nxb3 {[%emt 0:00:02]} cxb3 {[%emt 0:00:01]} 31. Rxa6 Bb5 32. Qd1 {[%emt 0:00:11]} Bxa6 {[%emt 0:00:01]} 33. Rxa6 {[%emt 0:00:01]} Qe7 {[%emt 0:00:01]} 34. e5 Rd8 35. Qe2 {[%emt 0:00:08]} Rbd7 {[%emt 0:00:01]} 36. Kh2 {[%emt 0:00:02]} Qc5 {[%emt 0:00:03]} 37. Ra3 {[%emt 0:00:03]} Qb6 {[%emt 0:00:02]} 38. Ra1 {[%emt 0:00:07]} Ra7 {[%emt 0:00:01]} 39. Rf1 {[%emt 0:00:02]} Ra2 {[%emt 0:00:01]} 40. Nd4 {[%emt 0:00:03]} Qc7 {[%emt 0:00:01]} 41. Nxb3 {[%emt 0:00:03]} Rb8 {[%emt 0:00:02]} 42. Qc2 {[%emt 0:00:01]} Qxe5+ {[%emt 0:00:02]} 43. f4 {[%emt 0:00:01]} Qd5 {[%emt 0:00:01]} 44. Nd4 {[%emt 0:00:02]} Rbxb2 {[%emt 0:00:01]} 45. Qd3 {[%emt 0:00:05]} h6 {[%emt 0:00:01]} 46. Rg1 {[%emt 0:00:01]} Rxg2+ {[%emt 0:00:01]} 47. Rxg2 {[%emt 0:00:02]} Qxg2# {[%emt 0:00:00]} 1-0

[Event "German-ch Blitz Women 2022"]
[Site "Magdeburg"]
[Date "2022.08.13"]
[Round "19.11"]
[White "Grabowski, Petra"]
[Black "Rath, Alina"]
[Result "1/2-1/2"]
[ECO "D32"]
[WhiteElo "1643"]
[BlackElo "2062"]
[Annotator "NA RC"]
[PlyCount "84"]
[EventDate "2022.08.10"]
[EventType "tourn"]
[EventCountry "GER"]
[SourceTitle "playchess.com"]
[Source "ChessBase"]
[SourceQuality "1"]
[TimeControl "180+2"]

1. d4 {[%emt 0:00:01]} d5 {[%emt 0:00:00]} 2. c4 {[%emt 0:00:01]} e6 {[%emt 0:00:01]} 3. Nc3 {[%emt 0:00:01]} c5 {[%emt 0:00:01]} 4. dxc5 {[%emt 0:00:05]} d4 {[%emt 0:00:04]} 5. Ne4 {[%emt 0:00:06]} Bxc5 {[%emt 0:00:05]} 6. Nxc5 {[%emt 0:00:08]} Qa5+ {[%emt 0:00:01]} 7. Bd2 {[%emt 0:00:07]} Qxc5 {[%emt 0:00:02]} 8. b3 {[%emt 0:00:06]} Nc6 {[%emt 0:00:02]} 9. e3 {[%emt 0:00:09]} e5 {[%emt 0:00:07]} 10. Bd3 {[%emt 0:00:12]} Nf6 {[%emt 0:00:03]} 11. Qc2 {[%emt 0:00:15]} Be6 {[%emt 0:00:21]} 12. Nf3 {[%emt 0:00:10]} Rd8 {[%emt 0:00:07]} 13. O-O {[%emt 0:00:13]} O-O {[%emt 0:00:03]} 14. exd4 {[%emt 0:00:05]} Nxd4 {[%emt 0:00:02]} 15. Nxd4 {[%emt 0:00:10]} exd4 {[%emt 0:00:02]} 16. a3 {[%emt 0:00:08]} Qh5 {[%emt 0:00:08]} 17. Rfe1 {[%emt 0:00:14]} Ng4 {[%emt 0:00:17]} 18. h3 {[%emt 0:00:10]} Nf6 {[%emt 0:00:02]} 19. Be4 {[%emt 0:00:13]} Nxe4 {[%emt 0:00:12]} 20. Qxe4 {[%emt 0:00:05]} b6 {[%emt 0:00:11]} 21. Rad1 {[%emt 0:00:11]} h6 {[%emt 0:00:05]} 22. Qd3 {[%emt 0:00:07]} Bf5 {[%emt 0:00:03]} 23. Qg3 {[%emt 0:00:05]} Rde8 {[%emt 0:00:13]} 24. b4 Re2 {[%emt 0:00:21]} 25. Kf1 {[%emt 0:00:31]} Rxe1+ {[%emt 0:00:06]} 26. Rxe1 {[%emt 0:00:03]} Be6 {[%emt 0:00:07]} 27. Qf4 {[%emt 0:00:03]} Bxc4+ {[%emt 0:00:03]} 28. Kg1 {[%emt 0:00:02]} Qd5 {[%emt 0:00:07]} 29. Qg4 {[%emt 0:00:03]} Kh8 {[%emt 0:00:03]} 30. Qh4 {[%emt 0:00:04]} Bd3 {[%emt 0:00:05]} 31. Bc1 {[%emt 0:00:04]} Bg6 {[%emt 0:00:07]} 32. Rd1 {[%emt 0:00:02]} d3 {[%emt 0:00:02]} 33. Bd2 {[%emt 0:00:06]} Kh7 {[%emt 0:00:04]} 34. Qf4 {[%emt 0:00:02]} Qb3 {[%emt 0:00:05]} 35. Qf3 {[%emt 0:00:04]} Qxa3 {[%emt 0:00:03]} 36. Be1 {[%emt 0:00:04]} Qb3 {[%emt 0:00:03]} 37. h4 {[%emt 0:00:03]} Re8 {[%emt 0:00:02]} 38. h5 {[%emt 0:00:01]} Be4 {[%emt 0:00:03]} 39. Qf4 {[%emt 0:00:01]} Qxd1 {[%emt 0:00:13]} 40. Qe3 {[%emt 0:00:04]} Bc6 {[%emt 0:00:05]} 41. Qd4 {[%emt 0:00:02]} Qxe1+ {[%emt 0:00:05]} 42. Kh2 {[%emt 0:00:01]} Qe5+ {[%emt 0:00:26]} 1/2-1/2

[Event "German-ch Blitz Women 2022"]
[Site "Magdeburg"]
[Date "2022.08.13"]
[Round "19.12"]
[White "Braun, Kristin"]
[Black "Skibbe, Diana"]
[Result "0-1"]
[ECO "C50"]
[WhiteElo "1897"]
[BlackElo "1943"]
[Annotator "TA"]
[PlyCount "46"]
[EventDate "2022.08.10"]
[EventType "tourn"]
[EventCountry "GER"]
[SourceTitle "playchess.com"]
[Source "ChessBase"]
[SourceQuality "1"]
[TimeControl "180+2"]

{[%evp 10,46,16,8,27,11,17,-57,0,-23,8,-27,-6,-20,-16,-110,-114,-114,-106,-125,-99,-278,-280,-493,-395,-1208,-1261,-1770,-443,-3040,-1014,-1908,-2043,-29991,-2690,-29991,-29992,-29994,-29992]} 1. e4 {[%emt 0:00:00]} e5 {[%emt 0:00:01]} 2. Nf3 {[%emt 0:00:01]} Nc6 {[%emt 0:00:01]} 3. Bc4 {[%emt 0:00:00]} Nf6 {[%emt 0:00:01]} 4. d3 {[%emt 0:00:01]} Bc5 5. c3 O-O 6. Nbd2 h6 {[%emt 0:00:07] C54: Giuoco Piano: 4 c3 Nf6, main lines with 5 d4 and 5 d3.} 7. h3 {[%emt 0:00:03]} d6 {[%emt 0:00:01]} 8. g4 {[%emt 0:00:08]} (8. b4 $11 Bb6 9. a4) 8... Be6 {[%emt 0:00:02]} ({Better is} 8... Ne7 $15) 9. Bb3 {[%emt 0:00:01]} Bxb3 10. axb3 Bb6 {[%emt 0:00:04]} 11. Nf1 {[%emt 0:00:11]} d5 {[%emt 0:00:04] [#]} 12. exd5 $146 {[%emt 0:00:17]} (12. Qe2 $11 {keeps the balance.}) ({Predecessor:} 12. Qe2 Qd7 13. Ng3 Rad8 14. g5 dxe4 15. dxe4 hxg5 16. Bxg5 Qd3 17. Bxf6 gxf6 18. Qxd3 Rxd3 {1-0 (33) Bologan,V (2700)-Barber,G (2005) Edmonton 2005}) 12... Qxd5 $17 {[%emt 0:00:07] White must now prevent ...e4.} 13. Ne3 {[%emt 0:00:11]} Qd7 {[%emt 0:00:08] Black is more active.} 14. Nf5 {[%emt 0:00:07]} e4 {[%emt 0:00:12]} 15. N3h4 {[%emt 0:00:30] White does not recover from this.} (15. dxe4 $17 Qxd1+ 16. Kxd1) 15... exd3 $19 {[%emt 0:00:06] [#] aiming for ...Ne4.} 16. Qf3 {[%emt 0:00:10] Inhibits Ne4.} (16. O-O {was necessary.} Ne4 17. Nf3) 16... Rae8+ {[%emt 0:00:02]} 17. Kd1 $2 {[%emt 0:00:11]} (17. Be3) 17... Ne5 {[%emt 0:00:02]} 18. Nxh6+ {[%emt 0:00:06]} Kh7 {[%emt 0:00:26]} (18... gxh6 $142 19. Qg2 Qe6) 19. Qf4 {[%emt 0:00:10]} (19. Qf5+ $142 Qxf5 20. N6xf5) 19... Ng6 {[%emt 0:00:09]} (19... Qd5 $142 20. Nf3 Nexg4) 20. Nxg6 {[%emt 0:00:23]} fxg6 {[%emt 0:00:02]} 21. Bd2 {[%emt 0:00:16]} Ne4 {[%emt 0:00:01]} (21... Qd5 $142 22. Be3 Qxh1+ 23. Kd2 Qxa1 24. Qf3 Ne4+ 25. Qxe4 Bxe3+ 26. Qxe3 Qb1 27. f3 Qc2+ 28. Ke1 {[#]} Rxf3 $1 29. Qxe8 Qc1#) 22. Qg5 {[%emt 0:00:11]} Nxg5 {[%emt 0:00:03]} 23. Bxg5 {[%emt 0:00:01]} gxh6 {[%emt 0:00:02] Weighted Error Value: White=1.91/Black=1.28} 0-1